[Event "*** Titled Tuesday Blitz"]
[Site "Chess.com"]
[Date "2020.05.12"]
[Round "10"]
[White "NemtsevIgor"]
[Black "2L8IWUN"]
[Result "0-1"]
[WhiteElo "2289"]
[BlackElo "2452"]
[TimeControl "180+1"]
[EndTime "11:55:07 PDT"]
[Termination "2L8IWUN won by resignation"]

1. d4 {[%clk 0:03:00.9]} 1... Nf6 {[%clk 0:02:58]} 2. Bf4 {[%clk 0:03:00]} 2...
e6 {[%clk 0:02:58.1]} 3. e3 {[%clk 0:03:00.1]} 3... d5 {[%clk 0:02:58.8]} 4. Nf3
{[%clk 0:02:59.8]} 4... Bd6 {[%clk 0:02:59.6]} 5. Bg3 {[%clk 0:02:59.5]} 5...
O-O {[%clk 0:03:00.4]} 6. Nbd2 {[%clk 0:02:58.8]} 6... c5 {[%clk 0:03:01.1]} 7.
c3 {[%clk 0:02:58.7]} 7... Qc7 {[%clk 0:03:01]} 8. Ne5 {[%clk 0:02:56.5]} 8...
b6 {[%clk 0:02:59.9]} 9. f4 {[%clk 0:02:54.1]} 9... Ba6 {[%clk 0:02:58.9]} 10.
Bxa6 {[%clk 0:02:53.6]} 10... Nxa6 {[%clk 0:02:59.8]} 11. O-O {[%clk 0:02:53.1]}
11... Nd7 {[%clk 0:02:54.8]} 12. Qa4 {[%clk 0:02:40.8]} 12... Nab8 {[%clk
0:02:54.4]} 13. Bh4 {[%clk 0:02:29.9]} 13... f6 {[%clk 0:02:47.4]} 14. Nef3
{[%clk 0:02:30]} 14... Nc6 {[%clk 0:02:47.5]} 15. Rac1 {[%clk 0:02:28.5]} 15...
e5 {[%clk 0:02:44.2]} 16. e4 {[%clk 0:02:15.6]} 16... exd4 {[%clk 0:02:04.6]}
17. exd5 {[%clk 0:02:10.7]} 17... Ne7 {[%clk 0:02:00.6]} 18. cxd4 {[%clk
0:02:06.7]} 18... Bxf4 {[%clk 0:01:59.2]} 19. dxc5 {[%clk 0:02:02.1]} 19... Nxc5
{[%clk 0:01:57.8]} 20. Qc4 {[%clk 0:01:57.2]} 20... Qd6 {[%clk 0:01:57.7]} 21.
b4 {[%clk 0:01:50.9]} 21... Nb7 {[%clk 0:01:56]} 22. Rfd1 {[%clk 0:01:30.4]}
22... Rfc8 {[%clk 0:01:51.2]} 23. Qe4 {[%clk 0:01:26.4]} 23... Rxc1 {[%clk
0:01:49.8]} 24. Rxc1 {[%clk 0:01:26.3]} 24... Nxd5 {[%clk 0:01:47.4]} 25. Nc4
{[%clk 0:01:22.7]} 25... Qd7 {[%clk 0:01:45.2]} 26. Rd1 {[%clk 0:01:19.8]} 26...
Rd8 {[%clk 0:01:38.1]} 27. Rxd5 {[%clk 0:01:08.8]} 27... Bxh2+ {[%clk 0:01:35]}
28. Kxh2 {[%clk 0:01:06.9]} 28... Qxd5 {[%clk 0:01:35.9]} 29. Qg4 {[%clk
0:01:02.6]} 29... h5 {[%clk 0:01:27.7]} 30. Qf4 {[%clk 0:00:54.8]} 30... Nd6
{[%clk 0:01:24.7]} 31. Ne3 {[%clk 0:00:51.9]} 31... Qe4 {[%clk 0:01:23]} 32. Bg3
{[%clk 0:00:45.4]} 32... Qxf4 {[%clk 0:01:14.9]} 33. Bxf4 {[%clk 0:00:45.6]}
33... a5 {[%clk 0:01:10.8]} 34. bxa5 {[%clk 0:00:45.1]} 34... bxa5 {[%clk
0:01:11.7]} 35. Nd5 {[%clk 0:00:40.1]} 35... Ne4 {[%clk 0:01:11.3]} 36. Ne7+
{[%clk 0:00:38.4]} 36... Kf7 {[%clk 0:01:11.5]} 37. Nc6 {[%clk 0:00:38.8]} 37...
Rd1 {[%clk 0:01:07.3]} 38. Nxa5 {[%clk 0:00:36.7]} 38... Ra1 {[%clk 0:01:04.7]}
39. Nc4 {[%clk 0:00:30.1]} 39... Rxa2 {[%clk 0:01:03]} 40. Nd6+ {[%clk
0:00:30.3]} 40... Nxd6 {[%clk 0:01:02.7]} 41. Bxd6 {[%clk 0:00:30.6]} 41... Ke6
{[%clk 0:01:02.3]} 42. Bf8 {[%clk 0:00:29.9]} 42... g5 {[%clk 0:01:01.1]} 43.
Bc5 {[%clk 0:00:25.2]} 43... Kf5 {[%clk 0:00:58.3]} 44. Nd4+ {[%clk 0:00:23.6]}
44... Ke4 {[%clk 0:00:56.7]} 45. Ne6 {[%clk 0:00:21.5]} 45... Kd5 {[%clk
0:00:53.1]} 46. Ng7 {[%clk 0:00:14.1]} 46... Kxc5 {[%clk 0:00:51.6]} 47. Nxh5
{[%clk 0:00:14.8]} 47... Ra6 {[%clk 0:00:47.5]} 48. g4 {[%clk 0:00:13.4]} 48...
Kd5 {[%clk 0:00:45.3]} 49. Kg3 {[%clk 0:00:13.7]} 49... Ke5 {[%clk 0:00:45.1]}
50. Ng7 {[%clk 0:00:12.9]} 50... Ra3+ {[%clk 0:00:44.3]} 51. Kg2 {[%clk
0:00:12.9]} 51... Kf4 {[%clk 0:00:44.3]} 52. Nh5+ {[%clk 0:00:12.8]} 52... Ke5
{[%clk 0:00:39.2]} 53. Kf2 {[%clk 0:00:10.8]} 53... Rh3 {[%clk 0:00:37.4]} 54.
Ng7 {[%clk 0:00:10.2]} 54... Kf4 {[%clk 0:00:33.6]} 55. Nh5+ {[%clk 0:00:10.5]}
55... Rxh5 {[%clk 0:00:23.7]} 56. gxh5 {[%clk 0:00:10.6]} 56... Kf5 {[%clk
0:00:24.6]} 57. Kg3 {[%clk 0:00:10.4]} 57... Ke6 {[%clk 0:00:16.2]} 58. Kg4
{[%clk 0:00:09.8]} 58... Kf7 {[%clk 0:00:16.8]} 59. Kf5 {[%clk 0:00:10]} 59...
Kg7 {[%clk 0:00:17.4]} 60. Kg4 {[%clk 0:00:04.9]} 60... Kh6 {[%clk 0:00:17.3]}
61. Kf5 {[%clk 0:00:04.6]} 61... Kxh5 {[%clk 0:00:18.2]} 62. Kxf6 {[%clk
0:00:04.3]} 62... g4 {[%clk 0:00:18.5]} 63. Kf5 {[%clk 0:00:04.5]} 63... g3
{[%clk 0:00:19.1]} 0-1

[Event "*** Titled Tuesday Blitz"]
[Site "Chess.com"]
[Date "2020.05.12"]
[Round "10"]
[White "shav3184"]
[Black "mamonika"]
[Result "1-0"]
[WhiteElo "2343"]
[BlackElo "2009"]
[TimeControl "180+1"]
[EndTime "11:55:07 PDT"]
[Termination "shav3184 won by resignation"]

1. e4 {[%clk 0:03:00.9]} 1... c5 {[%clk 0:02:59.9]} 2. Nf3 {[%clk 0:03:00.3]}
2... d6 {[%clk 0:03:00.4]} 3. d4 {[%clk 0:02:59.8]} 3... cxd4 {[%clk 0:03:00.1]}
4. Nxd4 {[%clk 0:03:00.7]} 4... Nf6 {[%clk 0:03:00.5]} 5. f3 {[%clk 0:03:01]}
5... e5 {[%clk 0:02:58.6]} 6. Nb3 {[%clk 0:03:00.4]} 6... Be6 {[%clk 0:02:58.2]}
7. c4 {[%clk 0:03:00]} 7... Qc7 {[%clk 0:02:47.1]} 8. Na3 {[%clk 0:02:54.4]}
8... a6 {[%clk 0:02:39.4]} 9. Be3 {[%clk 0:02:54.1]} 9... Nbd7 {[%clk
0:02:34.8]} 10. Be2 {[%clk 0:02:52.6]} 10... g6 {[%clk 0:02:32.8]} 11. O-O
{[%clk 0:02:52.3]} 11... Bg7 {[%clk 0:02:33.2]} 12. Qd2 {[%clk 0:02:48.2]} 12...
Rd8 {[%clk 0:02:26.6]} 13. Rfd1 {[%clk 0:02:45.1]} 13... Nc5 {[%clk 0:02:25.9]}
14. Nxc5 {[%clk 0:02:44.1]} 14... dxc5 {[%clk 0:02:25.4]} 15. Qxd8+ {[%clk
0:02:43.9]} 15... Qxd8 {[%clk 0:02:26.3]} 16. Rxd8+ {[%clk 0:02:44.1]} 16...
Kxd8 {[%clk 0:02:26.1]} 17. Bxc5 {[%clk 0:02:44.7]} 17... Kc7 {[%clk 0:02:26.2]}
18. Rd1 {[%clk 0:02:43.7]} 18... Nd7 {[%clk 0:02:24.1]} 19. Be3 {[%clk 0:02:39]}
19... f5 {[%clk 0:02:21.6]} 20. Nc2 {[%clk 0:02:35.3]} 20... fxe4 {[%clk
0:02:08.7]} 21. fxe4 {[%clk 0:02:36.2]} 21... Nf6 {[%clk 0:02:08.1]} 22. Bd3
{[%clk 0:02:10]} 22... Rd8 {[%clk 0:02:05.9]} 23. Rd2 {[%clk 0:02:07.8]} 23...
Ng4 {[%clk 0:01:55.2]} 24. h3 {[%clk 0:01:57]} 24... Nxe3 {[%clk 0:01:20]} 25.
Nxe3 {[%clk 0:01:57.9]} 25... Bh6 {[%clk 0:01:15.8]} 26. Kf2 {[%clk 0:01:55.7]}
26... Bxc4 {[%clk 0:01:09.8]} 27. Rc2 {[%clk 0:01:01.4]} 27... Rxd3 {[%clk
0:01:00.6]} 28. Nxc4 {[%clk 0:00:58.9]} 28... Kd8 {[%clk 0:00:46.7]} 29. Nxe5
{[%clk 0:00:56.7]} 29... Rd2+ {[%clk 0:00:46.5]} 30. Rxd2+ {[%clk 0:00:55.7]}
30... Bxd2 {[%clk 0:00:47.4]} 31. Ke2 {[%clk 0:00:49.5]} 31... Bf4 {[%clk
0:00:43.7]} 32. Nf3 {[%clk 0:00:48.4]} 32... Ke7 {[%clk 0:00:42.3]} 33. Kd3
{[%clk 0:00:48]} 33... Kd6 {[%clk 0:00:37]} 34. Kd4 {[%clk 0:00:44.1]} 34... b6
{[%clk 0:00:30.1]} 35. e5+ {[%clk 0:00:42.2]} 35... Ke6 {[%clk 0:00:27.9]} 36.
Ke4 {[%clk 0:00:42.2]} 36... Bg3 {[%clk 0:00:27.3]} 37. Nd4+ {[%clk 0:00:41.2]}
37... Kd7 {[%clk 0:00:26.6]} 38. Kd5 {[%clk 0:00:41.1]} 38... Bf2 {[%clk
0:00:21.5]} 39. e6+ {[%clk 0:00:38.8]} 39... Kc7 {[%clk 0:00:17.8]} 40. Nc6
{[%clk 0:00:35.6]} 40... a5 {[%clk 0:00:12.9]} 41. Ne5 {[%clk 0:00:35]} 41...
Kd8 {[%clk 0:00:10.5]} 42. Nc6+ {[%clk 0:00:20.9]} 42... Ke8 {[%clk 0:00:09.7]}
43. a4 {[%clk 0:00:20.4]} 43... Be3 {[%clk 0:00:08.8]} 44. b3 {[%clk 0:00:19.9]}
44... Bf2 {[%clk 0:00:08.6]} 45. Kc4 {[%clk 0:00:20.1]} 45... Be3 {[%clk
0:00:08]} 46. Kb5 {[%clk 0:00:20.3]} 46... Bf2 {[%clk 0:00:08.3]} 47. Kc4 {[%clk
0:00:20]} 47... Be3 {[%clk 0:00:08.2]} 48. Kd5 {[%clk 0:00:20.3]} 48... Bf2
{[%clk 0:00:08]} 49. Kd6 {[%clk 0:00:19.1]} 49... Bc5+ {[%clk 0:00:08.2]} 50.
Kc7 {[%clk 0:00:19.1]} 50... Bf2 {[%clk 0:00:08]} 51. Kb7 {[%clk 0:00:18]} 51...
Be3 {[%clk 0:00:07.6]} 52. Na7 {[%clk 0:00:18.2]} 52... Ke7 {[%clk 0:00:06]} 53.
Nc8+ {[%clk 0:00:19.1]} 53... Kxe6 {[%clk 0:00:05.6]} 54. Nxb6 {[%clk 0:00:20]}
54... g5 {[%clk 0:00:05]} 55. Nc4 {[%clk 0:00:18.6]} 55... Bc5 {[%clk
0:00:03.1]} 56. Nxa5 {[%clk 0:00:18.4]} 56... Kf5 {[%clk 0:00:04]} 57. Nc4
{[%clk 0:00:18.6]} 57... Kf4 {[%clk 0:00:03.1]} 58. Kc6 {[%clk 0:00:17.2]} 58...
Bb4 {[%clk 0:00:03.1]} 59. Kb5 {[%clk 0:00:16.9]} 59... Bc3 {[%clk 0:00:03]} 60.
Nd6 {[%clk 0:00:16.7]} 60... Kg3 {[%clk 0:00:02.7]} 61. Nf7 {[%clk 0:00:16.7]}
61... Kxg2 {[%clk 0:00:02.8]} 62. Nxg5 {[%clk 0:00:15.9]} 62... h5 {[%clk
0:00:03.7]} 63. h4 {[%clk 0:00:15.3]} 63... Kg3 {[%clk 0:00:02.1]} 64. a5 {[%clk
0:00:16.2]} 64... Kxh4 {[%clk 0:00:02.3]} 65. Ne6 {[%clk 0:00:17.1]} 65... Kg4
{[%clk 0:00:01.8]} 66. a6 {[%clk 0:00:16.8]} 66... h4 {[%clk 0:00:02.2]} 67. a7
{[%clk 0:00:17]} 67... h3 {[%clk 0:00:02.9]} 68. a8=Q {[%clk 0:00:17.1]} 1-0

[Event "*** Titled Tuesday Blitz"]
[Site "Chess.com"]
[Date "2020.05.12"]
[Round "10"]
[White "Gandrade2"]
[Black "zivicd"]
[Result "0-1"]
[WhiteElo "2046"]
[BlackElo "2244"]
[TimeControl "180+1"]
[EndTime "11:55:11 PDT"]
[Termination "zivicd won on time"]

1. b3 {[%clk 0:02:56.4]} 1... b6 {[%clk 0:02:57.5]} 2. Bb2 {[%clk 0:02:56.3]}
2... Bb7 {[%clk 0:02:58]} 3. e3 {[%clk 0:02:56.2]} 3... c5 {[%clk 0:02:58]} 4.
Nf3 {[%clk 0:02:56.4]} 4... Nf6 {[%clk 0:02:58]} 5. d4 {[%clk 0:02:56.4]} 5...
g6 {[%clk 0:02:55.2]} 6. Be2 {[%clk 0:02:53.5]} 6... Bg7 {[%clk 0:02:55.3]} 7.
dxc5 {[%clk 0:02:51.6]} 7... bxc5 {[%clk 0:02:54.6]} 8. c4 {[%clk 0:02:52]} 8...
d6 {[%clk 0:02:51]} 9. O-O {[%clk 0:02:51.2]} 9... O-O {[%clk 0:02:51]} 10. Qc2
{[%clk 0:02:45.3]} 10... Nc6 {[%clk 0:02:47.5]} 11. Nc3 {[%clk 0:02:32.3]} 11...
Nb4 {[%clk 0:02:35.9]} 12. Qc1 {[%clk 0:02:31.4]} 12... Rb8 {[%clk 0:02:30]} 13.
Rd1 {[%clk 0:02:25.8]} 13... Ne4 {[%clk 0:02:11.4]} 14. Nxe4 {[%clk 0:02:21.8]}
14... Bxe4 {[%clk 0:02:11.2]} 15. Bxg7 {[%clk 0:02:16.2]} 15... Kxg7 {[%clk
0:02:12.1]} 16. Nd2 {[%clk 0:02:08.1]} 16... Ba8 {[%clk 0:02:03.5]} 17. Bf3
{[%clk 0:02:04.3]} 17... Qc8 {[%clk 0:01:58.2]} 18. Bxa8 {[%clk 0:01:58.5]}
18... Rxa8 {[%clk 0:01:59.1]} 19. Ne4 {[%clk 0:01:43.4]} 19... f5 {[%clk
0:01:48.8]} 20. Nc3 {[%clk 0:01:42.8]} 20... Qe6 {[%clk 0:01:41.2]} 21. a3
{[%clk 0:01:30.2]} 21... Nc6 {[%clk 0:01:37.6]} 22. Nd5 {[%clk 0:01:29.7]} 22...
Rab8 {[%clk 0:01:24.7]} 23. Qc3+ {[%clk 0:01:23.4]} 23... Kg8 {[%clk 0:01:21.8]}
24. Rab1 {[%clk 0:01:12.3]} 24... a5 {[%clk 0:01:18.2]} 25. Nf4 {[%clk
0:01:01.2]} 25... Qf6 {[%clk 0:01:04.7]} 26. Qd2 {[%clk 0:00:53.5]} 26... Kh8
{[%clk 0:00:47.1]} 27. Qd5 {[%clk 0:00:49.6]} 27... Ne5 {[%clk 0:00:39.7]} 28.
Ne6 {[%clk 0:00:41.4]} 28... Rg8 {[%clk 0:00:30.8]} 29. f4 {[%clk 0:00:21.2]}
29... Ng4 {[%clk 0:00:24.8]} 30. Re1 {[%clk 0:00:21.4]} 30... Qh4 {[%clk
0:00:24.4]} 31. h3 {[%clk 0:00:18.6]} 31... Qf2+ {[%clk 0:00:21.6]} 32. Kh1
{[%clk 0:00:18.9]} 32... Nxe3 {[%clk 0:00:19.6]} 33. Qf3 {[%clk 0:00:17.1]}
33... Qxf3 {[%clk 0:00:14.9]} 34. gxf3 {[%clk 0:00:17.2]} 34... Nc2 {[%clk
0:00:14.7]} 35. Ng5 {[%clk 0:00:15]} 35... Rg7 {[%clk 0:00:11]} 36. a4 {[%clk
0:00:12.3]} 36... Nd4 {[%clk 0:00:10]} 37. Re3 {[%clk 0:00:09.4]} 37... Rb7
{[%clk 0:00:08.5]} 38. h4 {[%clk 0:00:09]} 38... Kg8 {[%clk 0:00:07.7]} 39. Kg2
{[%clk 0:00:09.3]} 39... h6 {[%clk 0:00:07.9]} 40. Nh3 {[%clk 0:00:09.7]} 40...
Kf7 {[%clk 0:00:06.8]} 41. Nf2 {[%clk 0:00:10.1]} 41... Kf6 {[%clk 0:00:06.4]}
42. Nd1 {[%clk 0:00:08.4]} 42... Rg8 {[%clk 0:00:05.7]} 43. Kf2 {[%clk
0:00:08.2]} 43... e5 {[%clk 0:00:05]} 44. fxe5+ {[%clk 0:00:07.9]} 44... dxe5
{[%clk 0:00:05.2]} 45. Kg3 {[%clk 0:00:07.7]} 45... f4+ {[%clk 0:00:05]} 46. Kf2
{[%clk 0:00:07.8]} 46... fxe3+ {[%clk 0:00:05.2]} 47. Kxe3 {[%clk 0:00:08.5]}
47... Rd8 {[%clk 0:00:04]} 48. Nf2 {[%clk 0:00:08.5]} 48... Rxb3+ {[%clk
0:00:03.8]} 49. Rxb3 {[%clk 0:00:08.1]} 49... Nxb3 {[%clk 0:00:04.4]} 50. Ne4+
{[%clk 0:00:08.5]} 50... Ke7 {[%clk 0:00:03.9]} 51. f4 {[%clk 0:00:09]} 51...
Nc1 {[%clk 0:00:03.6]} 52. fxe5 {[%clk 0:00:08.9]} 52... Rd3+ {[%clk 0:00:03.7]}
53. Kf4 {[%clk 0:00:09.5]} 53... Rd4 {[%clk 0:00:03.8]} 54. Ke3 {[%clk
0:00:08.4]} 54... Rxe4+ {[%clk 0:00:03.9]} 55. Kxe4 {[%clk 0:00:08.5]} 55... Ke6
{[%clk 0:00:04.5]} 0-1

[Event "*** Titled Tuesday Blitz"]
[Site "Chess.com"]
[Date "2020.05.12"]
[Round "10"]
[White "FMJoseHerrera"]
[Black "stolencandy13"]
[Result "1/2-1/2"]
[WhiteElo "2642"]
[BlackElo "2528"]
[TimeControl "180+1"]
[EndTime "11:55:16 PDT"]
[Termination "Game drawn by repetition"]

1. Nf3 {[%clk 0:03:00.9]} 1... f5 {[%clk 0:02:56.2]} 2. d3 {[%clk 0:02:59.8]}
2... Nf6 {[%clk 0:02:54.8]} 3. Nc3 {[%clk 0:02:59.5]} 3... e6 {[%clk 0:02:48.3]}
4. e4 {[%clk 0:02:59.4]} 4... fxe4 {[%clk 0:02:43.6]} 5. dxe4 {[%clk 0:02:59.5]}
5... Bb4 {[%clk 0:02:41.4]} 6. Bg5 {[%clk 0:02:57.3]} 6... h6 {[%clk 0:02:33.2]}
7. Bh4 {[%clk 0:02:55.4]} 7... g5 {[%clk 0:02:30]} 8. Bg3 {[%clk 0:02:55.6]}
8... Nxe4 {[%clk 0:02:29.4]} 9. Qd3 {[%clk 0:02:55]} 9... d5 {[%clk 0:02:25.9]}
10. Nd2 {[%clk 0:02:44.2]} 10... Nxg3 {[%clk 0:02:10.2]} 11. Qg6+ {[%clk
0:02:42.4]} 11... Kf8 {[%clk 0:02:10.1]} 12. hxg3 {[%clk 0:02:43.3]} 12... Qe7
{[%clk 0:02:04.2]} 13. Rxh6 {[%clk 0:02:42.6]} 13... Rxh6 {[%clk 0:01:58.1]} 14.
Qxh6+ {[%clk 0:02:43.5]} 14... Qg7 {[%clk 0:01:58.6]} 15. Qxg7+ {[%clk
0:02:32.8]} 15... Kxg7 {[%clk 0:01:59.5]} 16. Nf3 {[%clk 0:02:31.1]} 16... Nc6
{[%clk 0:01:47.8]} 17. O-O-O {[%clk 0:02:26.8]} 17... Bc5 {[%clk 0:01:43.8]} 18.
Nxg5 {[%clk 0:02:07.7]} 18... Bxf2 {[%clk 0:01:42.2]} 19. Kb1 {[%clk 0:02:07.3]}
19... Bd7 {[%clk 0:01:32.3]} 20. g4 {[%clk 0:02:01.7]} 20... Rf8 {[%clk
0:01:21]} 21. Bd3 {[%clk 0:02:01]} 21... Ne5 {[%clk 0:01:11.3]} 22. Bb5 {[%clk
0:01:59.3]} 22... c6 {[%clk 0:01:10.6]} 23. Be2 {[%clk 0:02:00]} 23... Be3
{[%clk 0:01:07.4]} 24. Nf3 {[%clk 0:01:58.3]} 24... Nxg4 {[%clk 0:01:05.5]} 25.
Re1 {[%clk 0:01:37]} 25... Bf2 {[%clk 0:00:57.3]} 26. Rf1 {[%clk 0:01:34.5]}
26... Bg3 {[%clk 0:00:52.1]} 27. Rd1 {[%clk 0:01:26]} 27... e5 {[%clk
0:00:50.7]} 28. Ne4 {[%clk 0:01:25.7]} 28... Bf4 {[%clk 0:00:25.5]} 29. Nc5
{[%clk 0:01:25.5]} 29... Bc8 {[%clk 0:00:24.2]} 30. c4 {[%clk 0:01:23.9]} 30...
Ne3 {[%clk 0:00:24]} 31. Re1 {[%clk 0:01:17.1]} 31... b6 {[%clk 0:00:24.4]} 32.
Nd3 {[%clk 0:01:15.5]} 32... Bf5 {[%clk 0:00:23.9]} 33. cxd5 {[%clk 0:01:07.5]}
33... cxd5 {[%clk 0:00:23.7]} 34. b3 {[%clk 0:00:52.1]} 34... Bg3 {[%clk
0:00:23.7]} 35. Rc1 {[%clk 0:00:46.3]} 35... e4 {[%clk 0:00:22.7]} 36. Nd4
{[%clk 0:00:42.7]} 36... exd3 {[%clk 0:00:21.2]} 37. Nxf5+ {[%clk 0:00:43.1]}
37... Rxf5 {[%clk 0:00:21.3]} 38. Bxd3 {[%clk 0:00:44]} 38... Rf2 {[%clk
0:00:19.6]} 39. Rc6 {[%clk 0:00:41.5]} 39... Rd2 {[%clk 0:00:18.7]} 40. Rg6+
{[%clk 0:00:41.1]} 40... Kf7 {[%clk 0:00:17.4]} 41. Rxg3 {[%clk 0:00:41.4]}
41... Rxd3 {[%clk 0:00:17.4]} 42. Rf3+ {[%clk 0:00:41.9]} 42... Ke6 {[%clk
0:00:15.5]} 43. g4 {[%clk 0:00:42.8]} 43... Rd1+ {[%clk 0:00:15.4]} 44. Kb2
{[%clk 0:00:42.7]} 44... Re1 {[%clk 0:00:15.5]} 45. g5 {[%clk 0:00:42.7]} 45...
Nf5 {[%clk 0:00:14.9]} 46. Ka3 {[%clk 0:00:41.6]} 46... Rg1 {[%clk 0:00:14.9]}
47. Rc3 {[%clk 0:00:38.5]} 47... Rxg5 {[%clk 0:00:14.1]} 48. Rc7 {[%clk
0:00:39.4]} 48... Rg7 {[%clk 0:00:14.4]} 49. Rc6+ {[%clk 0:00:39.6]} 49... Ke5
{[%clk 0:00:14]} 50. Kb4 {[%clk 0:00:40.1]} 50... Nd4 {[%clk 0:00:14.2]} 51. Rc8
{[%clk 0:00:40.5]} 51... a6 {[%clk 0:00:14.2]} 52. Re8+ {[%clk 0:00:40.5]} 52...
Kd6 {[%clk 0:00:14.6]} 53. a4 {[%clk 0:00:39.6]} 53... Nc6+ {[%clk 0:00:14.3]}
54. Kc3 {[%clk 0:00:40.1]} 54... Rg3+ {[%clk 0:00:14.5]} 55. Kb2 {[%clk
0:00:39.6]} 55... Kc5 {[%clk 0:00:15.1]} 56. Ka3 {[%clk 0:00:38.7]} 56... a5
{[%clk 0:00:15.5]} 57. Rc8 {[%clk 0:00:38.3]} 57... Rg2 {[%clk 0:00:14.6]} 58.
Rc7 {[%clk 0:00:37.4]} 58... Kd6 {[%clk 0:00:14.9]} 59. Rg7 {[%clk 0:00:36.4]}
59... Nb4 {[%clk 0:00:14.9]} 60. Rxg2 {[%clk 0:00:35.1]} 60... Kc5 {[%clk
0:00:15.3]} 61. Kb2 {[%clk 0:00:35]} 61... Kd4 {[%clk 0:00:14.5]} 62. Rg4+
{[%clk 0:00:34.8]} 62... Kc5 {[%clk 0:00:14.8]} 63. Kc3 {[%clk 0:00:34.1]} 63...
Na2+ {[%clk 0:00:13.7]} 64. Kb2 {[%clk 0:00:34]} 64... Nb4 {[%clk 0:00:13.8]}
65. Rh4 {[%clk 0:00:34.6]} 65... Nd3+ {[%clk 0:00:13.8]} 66. Kc3 {[%clk
0:00:34.8]} 66... Nb4 {[%clk 0:00:14.1]} 67. Rh8 {[%clk 0:00:35]} 67... Na2+
{[%clk 0:00:13.9]} 68. Kb2 {[%clk 0:00:35.5]} 68... Nb4 {[%clk 0:00:14.2]} 69.
Kc3 {[%clk 0:00:36.1]} 69... Na2+ {[%clk 0:00:14]} 70. Kd3 {[%clk 0:00:34.1]}
70... Kb4 {[%clk 0:00:13.8]} 71. Kc2 {[%clk 0:00:33.1]} 71... Kc5 {[%clk
0:00:12.8]} 72. Rc8+ {[%clk 0:00:33.2]} 72... Kd6 {[%clk 0:00:12.7]} 73. Kd3
{[%clk 0:00:27.4]} 73... Nb4+ {[%clk 0:00:11.9]} 74. Kd4 {[%clk 0:00:27.9]}
74... Nc6+ {[%clk 0:00:12.1]} 75. Kc3 {[%clk 0:00:28.4]} 75... Nb4 {[%clk
0:00:12.2]} 76. Rh8 {[%clk 0:00:27.2]} 76... Kc5 {[%clk 0:00:12.4]} 77. Rc8+
{[%clk 0:00:24.8]} 77... Kd6 {[%clk 0:00:12]} 78. Rh8 {[%clk 0:00:20.2]} 78...
Kc5 {[%clk 0:00:12.4]} 79. Rh5 {[%clk 0:00:20.1]} 79... Na2+ {[%clk 0:00:12.2]}
80. Kb2 {[%clk 0:00:20.6]} 80... Nb4 {[%clk 0:00:13.1]} 81. Rh3 {[%clk
0:00:20.7]} 81... Kd4 {[%clk 0:00:12.3]} 82. Rh4+ {[%clk 0:00:20.8]} 82... Kc5
{[%clk 0:00:12.7]} 83. Ka3 {[%clk 0:00:20.2]} 83... Nc2+ {[%clk 0:00:12.8]} 84.
Kb2 {[%clk 0:00:20.7]} 84... Nb4 {[%clk 0:00:13.7]} 85. Kc3 {[%clk 0:00:21.6]}
85... Na2+ {[%clk 0:00:13.8]} 86. Kb2 {[%clk 0:00:22.3]} 86... Nb4 {[%clk
0:00:14.7]} 1/2-1/2

[Event "*** Titled Tuesday Blitz"]
[Site "Chess.com"]
[Date "2020.05.12"]
[Round "10"]
[White "Caterpiller35"]
[Black "ehrenfeld"]
[Result "0-1"]
[WhiteElo "2355"]
[BlackElo "2495"]
[TimeControl "180+1"]
[EndTime "11:55:16 PDT"]
[Termination "ehrenfeld won on time"]

1. d4 {[%clk 0:02:59.4]} 1... f5 {[%clk 0:02:56.9]} 2. Nc3 {[%clk 0:02:57.3]}
2... Nf6 {[%clk 0:02:56.2]} 3. Bg5 {[%clk 0:02:53.3]} 3... d5 {[%clk 0:02:42.7]}
4. Bxf6 {[%clk 0:02:52.8]} 4... exf6 {[%clk 0:02:42.4]} 5. e3 {[%clk 0:02:53]}
5... Be6 {[%clk 0:02:34.3]} 6. Qf3 {[%clk 0:02:51.4]} 6... Qd7 {[%clk
0:02:32.4]} 7. Bd3 {[%clk 0:02:51.6]} 7... Nc6 {[%clk 0:02:31.9]} 8. a3 {[%clk
0:02:50.2]} 8... O-O-O {[%clk 0:02:23.8]} 9. Nge2 {[%clk 0:02:48.6]} 9... g5
{[%clk 0:02:13.7]} 10. Ng3 {[%clk 0:02:47.2]} 10... Ne7 {[%clk 0:01:57.8]} 11.
O-O-O {[%clk 0:02:35.9]} 11... f4 {[%clk 0:01:52.8]} 12. exf4 {[%clk 0:02:33.5]}
12... Bg4 {[%clk 0:01:52.7]} 13. Qe3 {[%clk 0:02:25.7]} 13... Bxd1 {[%clk
0:01:51.9]} 14. Rxd1 {[%clk 0:02:26.6]} 14... h5 {[%clk 0:01:49.2]} 15. fxg5
{[%clk 0:02:18.3]} 15... fxg5 {[%clk 0:01:48.6]} 16. Qe5 {[%clk 0:02:01.4]}
16... Rh6 {[%clk 0:01:14.4]} 17. Qxg5 {[%clk 0:01:55.7]} 17... Qg4 {[%clk
0:01:10.5]} 18. h4 {[%clk 0:01:40.3]} 18... Qxg5+ {[%clk 0:01:07.8]} 19. hxg5
{[%clk 0:01:40.2]} 19... Rh8 {[%clk 0:01:08]} 20. f4 {[%clk 0:01:33.2]} 20... h4
{[%clk 0:01:06.8]} 21. Nf5 {[%clk 0:01:29.4]} 21... Nxf5 {[%clk 0:01:06.8]} 22.
Bxf5+ {[%clk 0:01:30.3]} 22... Kb8 {[%clk 0:01:07.2]} 23. Bh3 {[%clk 0:01:19]}
23... Bd6 {[%clk 0:01:03]} 24. Nxd5 {[%clk 0:01:16.1]} 24... c6 {[%clk
0:01:02.5]} 25. Nf6 {[%clk 0:00:58.6]} 25... Bxf4+ {[%clk 0:01:02]} 26. Kb1
{[%clk 0:00:59.3]} 26... Bxg5 {[%clk 0:01:02]} 27. Ne4 {[%clk 0:00:59.6]} 27...
Be7 {[%clk 0:00:59.4]} 28. c4 {[%clk 0:00:56.8]} 28... Rhf8 {[%clk 0:00:59.4]}
29. d5 {[%clk 0:00:53.4]} 29... Kc7 {[%clk 0:00:57.1]} 30. Rd3 {[%clk
0:00:43.6]} 30... Rf4 {[%clk 0:00:52.3]} 31. Nc3 {[%clk 0:00:37.3]} 31... Bf6
{[%clk 0:00:48.7]} 32. Be6 {[%clk 0:00:34.5]} 32... Bxc3 {[%clk 0:00:47]} 33.
Rxc3 {[%clk 0:00:35.4]} 33... cxd5 {[%clk 0:00:43.4]} 34. Bxd5 {[%clk
0:00:33.4]} 34... Re8 {[%clk 0:00:39.1]} 35. a4 {[%clk 0:00:29.7]} 35... a5
{[%clk 0:00:38.3]} 36. Rb3 {[%clk 0:00:28.6]} 36... b6 {[%clk 0:00:37.9]} 37.
Ka2 {[%clk 0:00:25.1]} 37... Re2 {[%clk 0:00:36.9]} 38. Rb5 {[%clk 0:00:21]}
38... Rc2 {[%clk 0:00:32.3]} 39. Kb3 {[%clk 0:00:16.6]} 39... Rff2 {[%clk
0:00:31.5]} 40. Ka3 {[%clk 0:00:11.3]} 40... Rfe2 {[%clk 0:00:29.1]} 41. Rb3
{[%clk 0:00:10.5]} 41... Rf2 {[%clk 0:00:26.3]} 42. Rb5 {[%clk 0:00:10.5]} 42...
Rf6 {[%clk 0:00:24.3]} 43. Rb3 {[%clk 0:00:09.8]} 43... Re2 {[%clk 0:00:21.5]}
44. Rh3 {[%clk 0:00:09.4]} 44... Rf4 {[%clk 0:00:20.3]} 45. Rb3 {[%clk
0:00:06.4]} 45... Re7 {[%clk 0:00:18.6]} 46. Rh3 {[%clk 0:00:06.3]} 46... Rd7
{[%clk 0:00:18.3]} 47. Rb3 {[%clk 0:00:06]} 47... Rd6 {[%clk 0:00:18.5]} 48. Rh3
{[%clk 0:00:04.2]} 48... Rg6 {[%clk 0:00:18.1]} 49. Rb3 {[%clk 0:00:04.1]} 49...
Rh6 {[%clk 0:00:17.9]} 50. Rh3 {[%clk 0:00:03.9]} 50... Rhf6 {[%clk 0:00:18.1]}
51. Ka2 {[%clk 0:00:03.5]} 51... Kd6 {[%clk 0:00:17.9]} 52. Rd3 {[%clk
0:00:02.4]} 52... Kc5 {[%clk 0:00:17.8]} 53. Rb3 {[%clk 0:00:02.2]} 53... Rf2
{[%clk 0:00:15.5]} 54. Rb5+ {[%clk 0:00:02]} 54... Kd4 {[%clk 0:00:15.6]} 55.
Rb3 {[%clk 0:00:02.2]} 55... Rd2 {[%clk 0:00:14.6]} 56. Rb5 {[%clk 0:00:01.9]}
56... Rd1 {[%clk 0:00:12.4]} 57. Rb3 {[%clk 0:00:01.7]} 57... Rff1 {[%clk
0:00:11.3]} 58. Rh3 {[%clk 0:00:01.9]} 58... Ra1+ {[%clk 0:00:10.7]} 59. Kb3
{[%clk 0:00:02]} 59... Rh1 {[%clk 0:00:10.5]} 0-1